Cogmind - Beta 16 @@@ ROGUE MODE // 2025.10.27 @ 05:37:38 Player: Scringis Result: Destroyed by RB-PXF(h) with Bolt Gun Performance ------------- Evolutions (0) 0 Regions Visited (4) 800 Robots Destroyed (23) 115 Value Destroyed (604) 604 Prototype IDs (12) 240 Alien Tech Used (0) 0 Bonus (764) 764 TOTAL SCORE: 2523 Bonus ------- Registered with UFD 300 Met Optimus in HQ 500 Friendly Fire -36 Cogmind --------- Core Integrity 0/250 Matter 129/300 Energy 240/240 System Corruption 1% Temperature Warm (120) Movement Walking (190) Ox1 Location -8/Scraptown Parts ------- > --- POWER (1) -------- Nuclear Core > --- PROPULSION (2) --- Armored Leg > --- UTILITY (2) ------ Medium Storage Unit A0-MCA's Component Scanner > --- WEAPON (2) ------- Heavy Machine Gun > --- INVENTORY (10) --- Advanced Treads VSS Leg Scrap Suit Improved Heat Sink Machine Analyzer Enhanced Optical Array Hardened Medium Armor Plating High-powered Shotgun CPS Tube (2) Peak State ------------ > --- POWER ------------ Nuclear Core > --- PROPULSION ------- Improved Carbon-fiber Leg Armored Leg > --- UTILITY ---------- Medium Storage Unit A0-MCA's Component Scanner > --- WEAPON ----------- High-powered Shotgun Gauss Cannon > --- INVENTORY -------- Advanced Treads Scrap Suit Improved Heat Sink Machine Analyzer Enhanced Optical Array Hardened Medium Armor Plating Heavy Machine Gun CPS Tube [Rating: 32] Favorites ----------- Power Light Ion Engine Engine Light Ion Engine Power Core Nuclear Core Propulsion Aluminum Leg Treads Light Treads Leg Aluminum Leg Utility Medium Storage Unit Storage Medium Storage Unit Processor A0-MCA's Component Scanner Hackware Hacking Suite Weapon Medium Laser Energy Gun Medium Laser Ballistic Gun Light Assault Rifle Ballistic Cannon Gauss Cannon Build | -11 -10 -10 -8 -8 ------- Run | Yrd Mat Sub Rec Scr Slots Evolved . | . . . . . Power . | . . . . . Propulsion . | . . . . . Utility . | . . . . . Weapon . | . . . . . Parts Attached 24 | 6 5 5 1 7 Power 6 | 1 1 2 1 1 Engine 5 | 1 1 2 1 . Core 1 | . . . . 1 Reactor . | . . . . . Propulsion 6 | 2 1 1 . 2 Treads 2 | 1 1 . . . Leg 4 | 1 . 1 . 2 Wheel . | . . . . . Hover . | . . . . . Flight . | . . . . . Utility 4 | 1 2 . . 1 Device . | . . . . . Storage 2 | 1 1 . . . Processor 1 | . . . . 1 Hackware 1 | . 1 . . . Protection . | . . . . . Artifact . | . . . . . Weapon 8 | 2 1 2 . 3 Energy Gun 4 | 2 1 1 . . Energy Cannon . | . . . . . Ballistic Gun 3 | . . 1 . 2 Ballistic Cannon 1 | . . . . 1 Launcher . | . . . . . Special Weapon . | . . . . . Impact Weapon . | . . . . . Slashing Weapon . | . . . . . Piercing Weapon . | . . . . . Special Melee Weapon . | . . . . . Unidentified Prototypes . | . . . . . Parts Lost 8 | . 1 5 . 2 Power 2 | . 1 1 . . Propulsion 4 | . . 3 . 1 Utility . | . . . . . Weapon 2 | . . 1 . 1 Highest Loss Streak 3 | . 1 3 . 1 To Critical Strikes . | . . . . . Average Backups 7 | 1 5 5 4 8 Power . | . . 1 . . Propulsion . | . 1 . . . Utility 3 | . 1 4 4 4 Weapon 1 | 1 1 . . 2 Tool/Special . | . . . . . Unused Backups 12 | . . . . 12 Power . | . . . . . Propulsion 2 | . . . . 2 Utility 7 | . . . . 7 Weapon 2 | . . . . 2 Tool/Special 1 | . . . . 1 Average Slot Usage (%) 79 | . 91 98 77 69 Engine 11 | . 11 13 6 10 Core 1 | . . . . 3 Treads 4 | . 25 1 . . Leg 17 | . 2 26 14 19 Storage 14 | . 14 14 14 14 Processor 1 | . . . . 2 Hackware 11 | . 8 14 14 11 Energy Gun 9 | . 28 20 14 . Ballistic Gun 3 | . . 7 14 2 Ballistic Cannon 1 | . . . . 2 Peak Build Rating 32 | 6 11 11 8 32 Average Rating 11 | 4 7 9 7 13 On Entrance 6 | . 6 11 7 8 Avg Prop Armor Cover (%) 12 | 13 11 . . . Naked Turns . | . . . . . Heaviest Build 29 | 12 20 20 16 29 Greatest Support 40 | 20 40 40 10 34 Greatest Overweight (x) 1 | 1 1 1 1 1 Average Overweight (x) . | . . . 1 . Largest Inventory Capacity 10 | 8 10 10 10 10 Average Capacity 9 | 7 9 10 10 10 Most Carried 10 | 4 9 8 5 10 Average Carried 7 | 1 5 5 4 8 Final Capacity 10 | 8 10 10 10 10 Final Carried 10 | 2 8 5 4 10 Class Distribution -------------------- 100% | Mutant Dominant Class ---------------- Mutant | -10/Materials Mutant | -10/Subcaves Mutant | -8/Recycling Mutant | -8/Scraptown Resources | -11 -10 -10 -8 -8 ----------- Run | Yrd Mat Sub Rec Scr Matter Collected 487 | 209 86 65 . 127 Remotely . | . . . . . Salvage Created 744 | . 409 96 . 239 Parts 44 | . 23 9 . 12 Haulers Intercepted . | . . . . . Recyclers Shooed . | . . . . . Parts Field Recycled . | . . . . . Retrieved Matter . | . . . . . Parts Self-Destructed 10 | . . 10 . . Prevented . | . . . . . Parts Restored . | . . . . . Kills | -11 -10 -10 -8 -8 ------- Run | Yrd Mat Sub Rec Scr Combat Hostiles Destroyed 19 | . 8 7 . 4 Guns 14 | . 5 7 . 2 Cannons 2 | . . . . 2 AOE 3 | . 3 . . . Classes Destroyed 8 | . 4 1 . 3 Builder 1 | . 1 . . . Operator 1 | . 1 . . . Watcher 2 | . 2 . . . Swarmer 7 | . . 7 . . Grunt 8 | . 8 . . . Federalist 1 | . . . . 1 Explorer 1 | . . . . 1 Scrapper 2 | . . . . 2 Best Kill Streak 5 | . 5 3 . 3 Combat Bots Only 4 | . 4 3 . 3 Max Kills in Single Turn 2 | . 2 2 . 1 Gunslinging 1 | . . 1 . . Exploded 2 | . 2 . . . Melee . | . . . . . Uniques/NPCs Destroyed . | . . . . . Combat | -11 -10 -10 -8 -8 -------- Run | Yrd Mat Sub Rec Scr Hostile Shots Fired 211 | . 33 91 . 87 Missed 64 | . 8 30 . 26 Hits 147 | . 25 61 . 61 Melee 3 | . . . . 3 Projectile 144 | . 25 61 . 58 Damage Taken 1569 | . 400 638 . 531 Core 254 | . 36 91 . 127 Absorbed by Shields . | . . . . . Core Remaining (%) 100 | 100 . . . . Volleys Fired 79 | . 36 19 . 24 Largest 2 | . 2 2 . 2 Hottest 115 | . 105 115 . 70 Shots Fired 152 | . 70 36 . 46 Gun 130 | . 70 36 . 24 Cannon 22 | . . . . 22 Launcher . | . . . . . Special . | . . . . . Kinetic 46 | . . . . 46 Thermal 66 | . 36 30 . . Explosive . | . . . . . Electromagnetic 40 | . 34 6 . . Robot Hit Streak 8 | . 8 4 . 7 Robot Miss Streak 4 | . 2 4 . 3 Penetration Max . | . . . . . Secondary Targets 3 | . . 3 . . Max Gunslinging Chain 1 | . . 1 . . Shots Hit Robots 85 | . 42 13 . 30 Core Hits 37 | . 21 7 . 9 Critical Kills . | . . . . . Critical Parts Destroyed 1 | . . . . 1 Critical Strikes 5 | . 1 1 . 3 Burn 1 | . . 1 . . Destroy 1 | . . . . 1 Blast 2 | . . . . 2 Corrupt 1 | . 1 . . . Melee Attacks . | . . . . . Impact . | . . . . . Slashing . | . . . . . Piercing . | . . . . . Sneak Attacks . | . . . . . Combat Hostiles . | . . . . . Follow-up Attacks . | . . . . . Damage Inflicted 1665 | . 783 179 . 703 Guns 1127 | . 586 179 . 362 Cannons 341 | . . . . 341 Explosions 195 | . 195 . . . Melee . | . . . . . Ramming 2 | . 2 . . . Kinetic 703 | . . . . 703 Thermal 608 | . 464 144 . . Explosive . | . . . . . Electromagnetic 352 | . 317 35 . . Impact . | . . . . . Slashing . | . . . . . Piercing . | . . . . . Highest Corruption 1 | . . . . 1 Average Corruption 1 | . . . . 1 Corruption Purged . | . . . . . Corruption Blocked . | . . . . . Overload Shots . | . . . . . Overflow Damage 10 | . . . . 10 Projectiles 10 | . . . . 10 Explosions . | . . . . . Melee . | . . . . . Knockbacks 7 | . . . . 7 Impact . | . . . . . Kinetic 7 | . . . . 7 Secondary . | . . . . . Self-Inflicted Damage 62 | . 62 . . . Shots 2 | . 2 . . . Rammed 2 | . 2 . . . Targets Rammed 2 | . 2 . . . Kicked . | . . . . . Crushed . | . . . . . Highest Temperature 307 | . 307 . . 126 Average Temperature 98 | . 125 . . 44 Received Heat Transfer 435 | . 195 144 . 96 Effects 2 | . 2 . . . Interference 2 | . 2 . . . Siege Activations . | . . . . . Martial Activations . | . . . . . Shielding Activations . | . . . . . Robots Disrupted . | . . . . . Combat Hostiles . | . . . . . Robots Corrupted . | . . . . . Combat Hostiles . | . . . . . Parts Fried 2 | . 1 1 . . Impact Corruptions . | . . . . . Robots Melted . | . . . . . Combat Hostiles . | . . . . . Parts Melted 2 | . 2 . . . Heat Transferred 1484 | . 1040 444 . . Parts Sabotaged . | . . . . . Parts Stolen . | . . . . . Parts Stripped . | . . . . . Power Chain Reactions 3 | . 3 . . . Alert | -11 -10 -10 -8 -8 ------- Run | Yrd Mat Sub Rec Scr Maximum Alert Level . | . . . . . Low Security (%) 100 | 100 100 . 100 . Level 1 . | . . . . . Level 2 . | . . . . . Level 3 . | . . . . . Level 4 . | . . . . . Level 5 . | . . . . . High Security . | . . . . . Max Security . | . . . . . Peak Influence 101 | . 101 . . . Initial . | . . . . . Average 16 | . 22 . . . Influence Increases 444 | . 244 195 . 5 Destroy 0b10 Robot/C 300 | . 160 140 . . Destroy 0b10 Robot/NC 25 | . 20 . . 5 Destroy Leader 44 | . 34 10 . . Destroy Structure 15 | . 15 . . . Lose Combat Pursuer 60 | . 15 45 . . Influence Decreases 439 | . 171 268 . . Entered New Map 36 | . . 36 . . Time Decay 373 | . 171 202 . . Lost Part 30 | . . 30 . . Squads Dispatched . | . . . . . Investigation . | . . . . . Extermination . | . . . . . Reinforcement . | . . . . . Assault . | . . . . . Garrison . | . . . . . Intercept . | . . . . . Searches Triggered . | . . . . . Construction Impeded . | . . . . . Haulers Reinforced . | . . . . . Active Scanning Responses . | . . . . . Cargo Convoy Interrupts . | . . . . . Stealth | -11 -10 -10 -8 -8 --------- Run | Yrd Mat Sub Rec Scr Distress Signals 1 | . 1 . . . Communications Jammed . | . . . . . Distress Signals . | . . . . . Times Spotted 33 | . 15 10 . 8 Peak Tracking Total 4 | . 3 4 . 3 Tactical Retreats 3 | . 1 2 . . Traps | -11 -10 -10 -8 -8 ------- Run | Yrd Mat Sub Rec Scr Traps Triggered 4 | . . 4 . . Indirectly . | . . . . . Trap Hack Attempts . | . . . . . Triggered . | . . . . . Disarmed . | . . . . . Reprogrammed . | . . . . . Reused . | . . . . . Traps Extracted . | . . . . . Installed . | . . . . . Triggered . | . . . . . Machines | -11 -10 -10 -8 -8 ---------- Run | Yrd Mat Sub Rec Scr Machines Disabled 3 | . . . . 3 Max in Single Turn 2 | . . . . 2 Machines Repaired . | . . . . . Machines Dismantled . | . . . . . Machines Sabotaged . | . . . . . Overloaded Fab Kills . | . . . . . Hacking | -11 -10 -10 -8 -8 --------- Run | Yrd Mat Sub Rec Scr Machines Accessed 9 | . . . 1 8 Terminals . | . . . . . Fabricators . | . . . . . Repair Stations . | . . . . . Recycling Units . | . . . . . Scanalyzers . | . . . . . Garrison Access . | . . . . . Total Hacks 70 | . . . 5 65 Successful 70 | . . . 5 65 Failed . | . . . . . Catastrophic . | . . . . . Database Lockouts . | . . . . . Manual . | . . . . . Terminals . | . . . . . Fabricators . | . . . . . Repair Stations . | . . . . . Recycling Units . | . . . . . Scanalyzers . | . . . . . Garrison Access . | . . . . . Terminal Hacks 70 | . . . 5 65 Record 69 | . . . 5 64 Proto ID Catalog 1 | . . . . 1 Fabricator Hacks . | . . . . . Repair Station Hacks . | . . . . . Recycling Unit Hacks . | . . . . . Scanalyzer . | . . . . . Garrison Access Hacks . | . . . . . Unauthorized Hacks . | . . . . . Terminals . | . . . . . Fabricators . | . . . . . Repair Stations . | . . . . . Recycling Units . | . . . . . Scanalyzers . | . . . . . Garrison Access . | . . . . . Data Cores Recovered 1 | . 1 . . . Used . | . . . . . Hacking Detections . | . . . . . Full Trace Events . | . . . . . Feedback Events . | . . . . . Feedback Blocked . | . . . . . Robot Schematics Acquired . | . . . . . Robots Built . | . . . . . Authchips . | . . . . . Time . | . . . . . Total Robot Build Rating . | . . . . . Part Schematics Acquired . | . . . . . Parts Built . | . . . . . Authchips . | . . . . . Time . | . . . . . Total Part Build Rating . | . . . . . Part Studies Acquired . | . . . . . Parts Repaired . | . . . . . Time . | . . . . . Parts Recycled . | . . . . . Recycled Matter . | . . . . . Retrieved Matter . | . . . . . Retrieved Components . | . . . . . Parts Scanalyzed . | . . . . . Part Schematics Acquired . | . . . . . Parts Damaged . | . . . . . Bothacking | -11 -10 -10 -8 -8 ------------ Run | Yrd Mat Sub Rec Scr Used RIF Installer . | . . . . . Robots Hacked . | . . . . . Non-combat . | . . . . . Combat . | . . . . . Robot Hacks Applied . | . . . . . Relay Couplers Released . | . . . . . Fabnet Peak Effective % . | . . . . . Robots Rewired . | . . . . . Allies Hacked . | . . . . . Hacks Repelled . | . . . . . Allies | -11 -10 -10 -8 -8 -------- Run | Yrd Mat Sub Rec Scr Total Allies . | . . . . . Largest Group . | . . . . . Highest-Rated Group . | . . . . . Highest-Rated Ally . | . . . . . Total Orders . | . . . . . Ally Attacks . | . . . . . Total Damage . | . . . . . Kills . | . . . . . Allies Corrupted . | . . . . . Allies Melted 3 | . . . . 3 Intel | -11 -10 -10 -8 -8 ------- Run | Yrd Mat Sub Rec Scr Active Infowar (turns) . | . . . . . Robot Analysis Total . | . . . . . Derelict Logs Recovered . | . . . . . Drone Launches . | . . . . . Drone Recoveries . | . . . . . Exploration | -11 -10 -10 -8 -8 ------------- Run | Yrd Mat Sub Rec Scr Turns Passed 4366 | 99 763 807 167 2530 Spaces Moved 2705 | 59 379 601 88 1578 Core 14 | 14 . . . . Treads 337 | 14 318 5 . . Legs 2354 | 31 61 596 88 1578 Wheels . | . . . . . Hover . | . . . . . Flight . | . . . . . Fastest Speed 50 | 50 160 120 190 120 Average Speed 148 | 147 164 120 190 152 Slowest Speed 190 | 190 190 190 190 190 Overloaded Moves . | . . . . . Propulsion Burnouts . | . . . . . Robots Hopped . | . . . . . Potential Cave-ins . | . . . . . Cave-ins Triggered . | . . . . . Exploration Rate (%) 38 | 6 60 29 10 87 Regions Visited 4 Branch Regions 3 Pre-discovered Areas 5 | . . . . 5 Known Exits Taken . | . . . . . Unknown Exits Taken 4 | 1 1 1 1 . Scrap Searched 5 | . . . . 5 Spaces Dug . | . . . . . Terrain Destroyed 22 | . 13 . . 9 Melee . | . . . . . Projectile 9 | . . . . 9 AOE 13 | . 13 . . . Terrain Rammed . | . . . . . Walls Destroyed . | . . . . . Machines Disabled . | . . . . . Actions | -11 -10 -10 -8 -8 --------- Run | Yrd Mat Sub Rec Scr Total 2906 | 72 445 642 88 1659 Wait 45 | . 14 10 . 21 Move 2701 | 58 378 600 87 1578 Hop . | . . . . . Pick Up 36 | 8 9 3 . 16 Fast Attach . | . . . . . Attach 19 | 6 2 4 1 6 Detach 2 | . . . . 2 Swap 7 | . 3 3 . 1 Drop 14 | . 1 3 . 10 Fire 79 | . 36 19 . 24 Melee . | . . . . . Ram . | . . . . . Kick . | . . . . . Crush 2 | . 2 . . . Escape Stasis . | . . . . . Rewire 1 | . . . . 1 Trap . | . . . . . Miscellaneous . | . . . . . Route ------- -11/Scrapyard -10/Materials (discovered 4 exits: [*Mat] / [*Min x2] / [*Sub]) -10/Subcaves (discovered 2 exits: [*Mat] / *Rec) -8/Recycling -8/Scraptown (discovered 1 exit: [*Fac]) History --------- Turn | Location | Event 23 | -11/Scrapyard | Discovered new exit (range 15) 100 | -11/Scrapyard | Entered Materials 318 | -10/Materials | Build established: Mutant 429 | -10/Materials | Discovered new exit (range 10) 537 | -10/Materials | Discovered new exit (range 10) 632 | -10/Materials | Discovered new exit (range 12) 848 | -10/Materials | Discovered new exit (range 9) 863 | -10/Materials | Entered Subcaves 863 | -10/Subcaves | Discovered new exit (range 11) 926 | -10/Subcaves | Lost 3 parts (2n1w) 1034 | -10/Subcaves | Discovered new exit (range 10) 1203 | -10/Subcaves | Shifting Twisted Machinery released Sub. Power Source 1227 | -10/Subcaves | Shifting Twisted Machinery released Sub. Power Source 1667 | -10/Subcaves | Core integrity fell below 50% 1670 | -10/Subcaves | Entered Recycling 1710 | -8/Recycling | Scanned before Scraplab entrance 1739 | -8/Recycling | Entered Scraplab 1766 | -8/Recycling | Discovered new exit (range 3) 1837 | -8/Recycling | Entered Scraptown 2289 | -8/Scraptown | Learned location of Extension (-5) 2340 | -8/Scraptown | Visited Supply Room 2409 | -8/Scraptown | Visited CPS Storage 2493 | -8/Scraptown | Visited UFD Registry 2493 | -8/Scraptown | Registered with UFD as "Nanoform" 2535 | -8/Scraptown | Visited IN-MT5's Study 2606 | -8/Scraptown | Visited Cave Peace 2687 | -8/Scraptown | Visited TADAMA 2902 | -8/Scraptown | Discovered new exit (range 5) 3574 | -8/Scraptown | Visited Fellowship of the Rings 3642 | -8/Scraptown | Visited LU-1G1's Boring Crew 3725 | -8/Scraptown | Visited Science Guys 3777 | -8/Scraptown | Visited DA-N13 Charitable Foundation 3790 | -8/Scraptown | Found DCF Scrap (28 items) 3838 | -8/Scraptown | Visited A0-MCA Data Center 3845 | -8/Scraptown | Given a B- rating by A0-MCA 3847 | -8/Scraptown | Found A0-MCA's Component Scanner 4068 | -8/Scraptown | Visited Scrapoid Pod Storage 4131 | -8/Scraptown | Met Optimus 4131 | -8/Scraptown | Accepted into 0bPrime 4185 | -8/Scraptown | Visited Scrap Suit Storage 4190 | -8/Scraptown | Found Scrap Suit 4218 | -8/Scraptown | Civil war broke out across Scraptown 4229 | -8/Scraptown | Visited Science Testing Area 4242 | -8/Scraptown | Visited Cartography Club 4254 | -8/Scraptown | Learned location of Storage (-8) 4254 | -8/Scraptown | Learned location of Cetus (-5) 4254 | -8/Scraptown | Learned location of Upper Caves (-5) 4254 | -8/Scraptown | Learned 8 Research zone layouts 4254 | -8/Scraptown | Learned 16 Research zone layouts 4254 | -8/Scraptown | Learned 4 Access zone layouts 4254 | -8/Scraptown | Learned 8 Access zone layouts 4254 | -8/Scraptown | Learned 4 Storage zone layouts 4254 | -8/Scraptown | Learned 8 Lower Caves zone layouts 4254 | -8/Scraptown | Learned 16 Lower Caves zone layouts 4254 | -8/Scraptown | Learned 20 Lower Caves zone layouts 4254 | -8/Scraptown | Learned 8 Proximity Caves zone layouts 4254 | -8/Scraptown | Learned Research emergency access door positions 4254 | -8/Scraptown | Learned location of 3 exits from Factory 4254 | -8/Scraptown | Learned location of 2 exits from Proximity Caves 4288 | -8/Scraptown | Lost 5 allies 4330 | -8/Scraptown | Core integrity fell below 20% 4367 | -8/Scraptown | Destroyed by RB-PXF(h) with Bolt Gun Last Messages --------------- 04337_ Bolt penetrates Wall. 04343_ QR-7P7(j) destroyed. 04344_ Bolt penetrates Wall. 04349_ Penetrated by Bolt. 04352_ Bolt penetrates Wall. 04356_ Slug penetrates RB-PXF(h). 04356_ RB-PXF(h) suffers critical hit (Blast). 04356_ Destroyed Airjet. 04356_ RB-PXF(h) knocked back. 04357_ Penetrated by Bolt. 04359_ Slug penetrates Wall. 04359_ R1-4IM(j) destroyed. 04359_ Penetrated by Bolt. 04362_ Slug penetrates RB-PXF(h). 04362_ Destroyed Airjet. 04362_ Penetrated by Bolt. 04362_ Gauss Cannon destroyed. 04362_ Bolt penetrates Wall. 04365_ Penetrated by Bolt. 04366_ G-47 Trooper destroyed. Map ----- +----------------------------------------------------+ | ?????????????????????????????????????????????????? | | ?????????????????????????????????????????????????? | | ?????????????????????????????????????????????????? | | ?????????????????????????????????????????????????? | | ?????????????????????????????????????????????????? | | ?????????????????????????????????????????????????? | | ?????????????????????????????????????????????????? | | ?????????????????????????????????????????????????? | | ?????????????????????????????????????????????????? | | ?????????????????????????????????????????????????? | | ?????????????????????????????????????????????????? | | ?????????????????????????????????????????????????? | | ?????????????????????????????????????????????????? | | ?????????????????????????????????????????????????? | | ?????????????????????????????????????????????????? | | ?????????????????????????????????????????????????? | | ?????????????????????????????????????????????????? | | ?????????????????????????????????????????????????? | | ?????????????????????????????????????????????????? | | ?????????????????????????????????????????????????? | | ?????????????????????????????????????????????????? | | ?????????????????????????????????????????????????? | | ?????????????????????????????????????????????????? | | ????????????????????????###??????????????????????? | | ????????????????????????#X#??????????????????????? | | ????????????????????????#@#??????????????????????? | | ???????????????# ??????!!*#??????????????????????? | | ???????????????# ?######%=######?????????????????? | | ???????????????# # =!%* ! #?????????????????? | | ???????????????# *"% %h= %/#?????????????????? | | ???????????????#!%## ;#;;;######?????????????????? | | ????????## ##### =#%%####%#######????????????????? | | "?????"""" """"" " / ## #????????????????? | | ??? % "## #????????????????? | | ??? % "## #????????????????? | | ??? %"##*% #????????????????? | | ??? "## = #????????????????? | | ??? #????????????????? | | "?????"""""""""" "## h #????????????????? | | ?????????""""""" "## #????????????????? | | ####???????###" "## #????????????????? | | ##????????#"" "###########????????????????? | | X"#????????#"" ## #"""""#?????????????????? | | ##????????#"" !%"## !!!!!#?????????????????? | | " X"#??????###"" %/"## ##"#??????????????? | | " ######### # = "## X" #??????????????? | | #??????????????? | | "## #??????????????? | | " ######### # " "## ! !! !#??????????????? | | " ""#??????###"" "## #"""""#""#??????????????? | +----------------------------------------------------+ Best States ------------- Heat Dissipation 25 Energy Generation 15 Energy Capacity 250 Matter Stores 300 Matter Capacity 300 Sight Range 16 Terrain Scan Density 10 Evasion (%) 55 Recoil Reduction 2 Offensive Hacking 10 Item Schematics ----------------- None Robot Schematics ------------------ None Fabricated ------------ Nothing Repaired ---------- Nothing Studied --------- None Alien Tech Used ----------------- None Achievements -------------- Civilization 2243 DATA ERROR: Steam Global Achievement% For Emergencies Only I Have A Map? Link The Feds Organ Harvest There's More Where That Came From You May Approach The Wall Challenges ------------ None Game ------ Seed RiotAssaultStorage Manual? 0 Play Time 00:44:41 Cumulative 22.9 hours Start 2025.10.27 @ 04:49:07 End 2025.10.27 @ 05:37:38 Sessions 1 Manual Loads 0 Difficulty Rogue Special Mode None Game No. 71 Rogue 71 Adventurer 0 Explorer 0 Win Type - Total 0 Types 0/0/0/0/0/0/0/0/0/0 Lore% 19 Gallery% 22 Achievement% 14 Wizard Run 0 Options --------- Layout 1 ASCII 0 Keyboard 0 Movement Arrows Keybinds 0 Fullscreen 2 Font 24/Smallcaps Map View 50x35 Zoom Use 0% Tactical HUD 1 Map Filters NONE Filters NONE Steam 1 RUN: 50d65154-0ee7-4596-b4b6-46751018bc71